[Event "SVK-ch Open 2018"]
[Site "Banska Stiavnica"]
[Date "2018.07.15"]
[Round "9"]
[White "Milcova, Zuzana"]
[Black "Slaba, Andrea"]
[Result "1/2-1/2"]
[ECO "A45"]
[WhiteElo "2002"]
[BlackElo "1936"]
[Annotator "NA"]
[PlyCount "85"]
[EventDate "2018.07.07"]
[EventType "swiss"]
[EventCountry "SVK"]
[SourceTitle "playchess.com"]
[Source "ChessBase"]
[SourceQuality "1"]
[TimeControl "40/5400+30:1800+30"]

1. d4 {[%emt 0:00:00]} Nf6 {[%emt 0:00:00]} 2. g3 {[%emt 0:00:00]} g6 {[%emt 0:00:27]} 3. Bg2 {[%emt 0:00:00]} d5 {[%emt 0:00:42]} 4. Nf3 {[%emt 0:00:27]} Bg7 {[%emt 0:00:29]} 5. O-O {[%emt 0:00:13]} O-O {[%emt 0:00:12]} 6. Nbd2 {[%emt 0:02:48]} c6 {[%emt 0:00:37]} 7. c4 {[%emt 0:01:45]} Bf5 {[%emt 0:02:37]} 8. b3 {[%emt 0:07:14]} Ne4 {[%emt 0:02:29]} 9. Bb2 {[%emt 0:01:13]} Nxd2 {[%emt 0:01:00]} 10. Nxd2 {[%emt 0:03:53]} Na6 {[%emt 0:10:51]} 11. a3 {[%emt 0:14:11]} Nc7 {[%emt 0:01:52]} 12. Ra2 {[%emt 0:11:20]} Qd7 {[%emt 0:02:18]} 13. Re1 {[%emt 0:06:03]} Rad8 {[%emt 0:05:18]} 14. cxd5 {[%emt 0:04:12]} cxd5 {[%emt 0:00:29]} 15. b4 {[%emt 0:05:51]} Nb5 {[%emt 0:02:21]} 16. Nb3 {[%emt 0:02:00]} b6 {[%emt 0:00:30]} 17. a4 {[%emt 0:01:50]} Nc7 {[%emt 0:00:11]} 18. Qd2 {[%emt 0:01:54]} Ne6 {[%emt 0:03:41]} 19. Ba1 {[%emt 0:05:19]} Rc8 {[%emt 0:04:23]} 20. f3 {[%emt 0:04:17]} Nc7 {[%emt 0:03:22]} 21. e4 {[%emt 0:06:44]} dxe4 {[%emt 0:01:59]} 22. fxe4 {[%emt 0:00:09]} Bh3 {[%emt 0:00:37]} 23. a5 {[%emt 0:03:50]} Bxg2 {[%emt 0:00:33]} 24. Kxg2 {[%emt 0:00:14]} f5 {[%emt 0:00:39]} 25. Qd3 {[%emt 0:07:36]} fxe4 {[%emt 0:04:42]} 26. Qxe4 {[%emt 0:00:13]} Qd5 {[%emt 0:00:33]} 27. Nc1 {[%emt 0:04:47]} Bf6 {[%emt 0:04:27]} 28. axb6 {[%emt 0:01:25]} axb6 {[%emt 0:00:08]} 29. Qxd5+ {[%emt 0:01:14]} Nxd5 {[%emt 0:00:02]} 30. Nd3 {[%emt 0:00:14]} Rc4 {[%emt 0:00:56]} 31. Ra7 {[%emt 0:02:47]} Nxb4 {[%emt 0:00:47]} 32. Nxb4 {[%emt 0:00:50]} Rxb4 {[%emt 0:00:05]} 33. d5 {[%emt 0:00:29]} Bxa1 {[%emt 0:01:00]} 34. Raxa1 {[%emt 0:00:04]} Rb2+ {[%emt 0:00:30]} 35. Kh3 {[%emt 0:00:04]} Rf7 {[%emt 0:02:07]} 36. Ra8+ {[%emt 0:01:28]} Kg7 {[%emt 0:00:27]} 37. Re8 {[%emt 0:00:51]} Rd2 {[%emt 0:01:10]} 38. Rd8 {[%emt 0:00:55]} b5 {[%emt 0:02:32]} 39. Re6 {[%emt 0:00:17]} b4 {[%emt 0:01:56]} 40. Rd7 {[%emt 0:00:03]} Kf8 {[%emt 0:02:08]} 41. Rb7 {[%emt 0:07:03]} Rxd5 {[%emt 0:02:05]} 42. Rb8+ {[%emt 0:01:27]} Kg7 {[%emt 0:00:09]} 43. Rxb4 {[%emt 0:00:21]} 1/2-1/2

[Event "SVK-ch Open 2018"]
[Site "Banska Stiavnica"]
[Date "2018.07.15"]
[Round "9"]
[White "Antal, Jozsef"]
[Black "Ucekajova, Veronika"]
[Result "1/2-1/2"]
[ECO "C06"]
[WhiteElo "1995"]
[BlackElo "1757"]
[Annotator "NA"]
[PlyCount "69"]
[EventDate "2018.07.07"]
[EventType "swiss"]
[EventCountry "SVK"]
[SourceTitle "playchess.com"]
[Source "ChessBase"]
[SourceQuality "1"]
[TimeControl "40/5400+30:1800+30"]

1. e4 e6 2. d4 {[%emt 0:00:44]} d5 {[%emt 0:00:05]} 3. Nd2 {[%emt 0:00:12]} Nf6 {[%emt 0:00:11]} 4. e5 {[%emt 0:00:10]} Nfd7 {[%emt 0:00:14]} 5. Bd3 {[%emt 0:00:14]} c5 {[%emt 0:00:11]} 6. c3 {[%emt 0:00:09]} Nc6 {[%emt 0:00:16]} 7. Ne2 {[%emt 0:00:13]} cxd4 {[%emt 0:00:13]} 8. cxd4 {[%emt 0:00:10]} f6 {[%emt 0:00:14]} 9. Nf4 {[%emt 0:00:51]} Nxd4 {[%emt 0:08:13]} 10. Qh5+ {[%emt 0:02:21]} Ke7 {[%emt 0:01:14]} 11. Ng6+ {[%emt 0:00:58]} hxg6 {[%emt 0:00:11]} 12. exf6+ {[%emt 0:00:10]} gxf6 {[%emt 0:01:06]} 13. Qxh8 {[%emt 0:00:34]} Ne5 {[%emt 0:00:35]} 14. Qh7+ {[%emt 0:02:11]} Kd6 {[%emt 0:04:46]} 15. Bxg6 {[%emt 0:00:16]} Nxg6 {[%emt 0:00:22]} 16. Qxg6 {[%emt 0:00:11]} e5 {[%emt 0:01:57]} 17. g4 {[%emt 0:07:17]} Bxg4 {[%emt 0:08:05]} 18. Qxg4 {[%emt 0:13:00]} Nc2+ {[%emt 0:00:24]} 19. Ke2 {[%emt 0:00:17]} Nxa1 {[%emt 0:01:30]} 20. Nc4+ {[%emt 0:00:32]} Kc7 {[%emt 0:24:20]} 21. Be3 {[%emt 0:00:44]} Qd7 {[%emt 0:13:44]} 22. Nxe5 {[%emt 0:00:32]} fxe5 {[%emt 0:00:29]} 23. Qxd7+ {[%emt 0:00:15]} Kxd7 {[%emt 0:00:08]} 24. Rxa1 {[%emt 0:00:06]} Rc8 {[%emt 0:08:05]} 25. Rd1 {[%emt 0:00:16]} Rc2+ {[%emt 0:01:14]} 26. Rd2 {[%emt 0:00:12]} Rxd2+ {[%emt 0:00:24]} 27. Bxd2 {[%emt 0:00:54]} Ke6 {[%emt 0:00:17]} 28. f3 {[%emt 0:04:16]} Be7 {[%emt 0:02:12]} 29. b3 {[%emt 0:00:28]} Kf5 {[%emt 0:02:39]} 30. Be1 {[%emt 0:00:23]} a6 {[%emt 0:03:11]} 31. Bg3 {[%emt 0:03:17]} e4 {[%emt 0:04:03]} 32. Bf2 {[%emt 0:08:26]} Kf4 {[%emt 0:01:02]} 33. Bg3+ {[%emt 0:00:21]} Kf5 {[%emt 0:00:20]} 34. Bf2 {[%emt 0:00:12]} Kf4 {[%emt 0:01:30]} 35. Bg3+ {[%emt 0:00:15]} 1/2-1/2

[Event "SVK-ch Open 2018"]
[Site "Banska Stiavnica"]
[Date "2018.07.15"]
[Round "9"]
[White "Gajdosik, Andrej"]
[Black "Brnusak, Andrej"]
[Result "1-0"]
[ECO "E71"]
[WhiteElo "1992"]
[BlackElo "1866"]
[Annotator "NA"]
[PlyCount "93"]
[EventDate "2018.07.07"]
[EventType "swiss"]
[EventCountry "SVK"]
[SourceTitle "playchess.com"]
[Source "ChessBase"]
[SourceQuality "1"]
[TimeControl "40/5400+30:1800+30"]

1. d4 {[%emt 0:00:00]} Nf6 {[%emt 0:00:00]} 2. c4 {[%emt 0:00:00]} g6 {[%emt 0:00:00]} 3. Nc3 {[%emt 0:00:07]} Bg7 {[%emt 0:00:00]} 4. e4 {[%emt 0:00:11]} d6 {[%emt 0:00:00]} 5. h3 {[%emt 0:01:33]} O-O {[%emt 0:02:10]} 6. Be3 {[%emt 0:00:10]} c6 {[%emt 0:03:17]} 7. f4 {[%emt 0:01:11]} e5 {[%emt 0:07:56]} 8. fxe5 dxe5 {[%emt 0:00:17]} 9. d5 {[%emt 0:02:21]} Nh5 {[%emt 0:07:21]} 10. Nge2 {[%emt 0:01:46]} cxd5 {[%emt 0:04:33]} 11. Qxd5 {[%emt 0:06:49]} Nc6 {[%emt 0:07:37]} 12. O-O-O {[%emt 0:06:46]} Be6 {[%emt 0:05:23]} 13. Qxd8 {[%emt 0:00:26]} Rfxd8 {[%emt 0:00:12]} 14. Nd5 {[%emt 0:00:14]} h6 {[%emt 0:04:36]} 15. g4 {[%emt 0:03:15]} Nf6 {[%emt 0:00:15]} 16. Nec3 {[%emt 0:00:29]} Kh7 {[%emt 0:02:10]} 17. Be2 {[%emt 0:02:27]} Rac8 {[%emt 0:04:51]} 18. Kb1 {[%emt 0:04:45]} Ne8 {[%emt 0:04:40]} 19. Rhf1 {[%emt 0:08:24]} Nd6 {[%emt 0:02:47]} 20. Bd3 {[%emt 0:02:31]} b6 {[%emt 0:02:34]} 21. b3 {[%emt 0:01:13]} Rd7 {[%emt 0:09:15]} 22. Rf2 {[%emt 0:05:17]} Na5 {[%emt 0:03:28]} 23. Rfd2 {[%emt 0:08:56]} Nab7 {[%emt 0:03:22]} 24. Bc2 {[%emt 0:01:36]} Rcd8 {[%emt 0:01:48]} 25. Nb4 {[%emt 0:05:24]} Na5 {[%emt 0:03:38]} 26. Ncd5 {[%emt 0:01:37]} Ndb7 {[%emt 0:06:37]} 27. Na6 {[%emt 0:08:44]} Nc6 {[%emt 0:02:15]} 28. Rf1 {[%emt 0:10:01]} Nd6 {[%emt 0:01:40]} 29. Nac7 {[%emt 0:01:24]} Nd4 {[%emt 0:03:31]} 30. Bxd4 {[%emt 0:07:06]} exd4 {[%emt 0:00:08]} 31. Rdf2 {[%emt 0:00:22]} Be5 {[%emt 0:02:32]} 32. Nxe6 {[%emt 0:01:43]} fxe6 {[%emt 0:00:07]} 33. Nf6+ {[%emt 0:00:11]} Bxf6 {[%emt 0:00:10]} 34. Rxf6 {[%emt 0:00:04]} e5 {[%emt 0:00:44]} 35. Re6 {[%emt 0:00:18]} Re8 {[%emt 0:02:31]} 36. Rff6 {[%emt 0:02:02]} Rxe6 {[%emt 0:00:26]} 37. Rxe6 {[%emt 0:00:05]} Nf7 {[%emt 0:00:30]} 38. Bd3 {[%emt 0:00:34]} Rc7 {[%emt 0:01:42]} 39. h4 {[%emt 0:02:07]} g5 {[%emt 0:01:12]} 40. h5 {[%emt 0:00:39]} Kg7 {[%emt 0:02:35]} 41. Kc2 {[%emt 0:30:45]} b5 {[%emt 0:12:30]} 42. Kb2 {[%emt 0:00:00]} bxc4 {[%emt 0:00:52]} 43. Bxc4 {[%emt 0:00:00]} Rb7 {[%emt 0:02:29]} 44. a4 {[%emt 0:00:00]} Nd8 {[%emt 0:11:03]} 45. Rg6+ {[%emt 0:00:00]} Kh7 {[%emt 0:00:26]} 46. Bg8+ {[%emt 0:00:00]} Kh8 {[%emt 0:00:05]} 47. Bd5 {[%emt 0:00:00]} 1-0

[Event "SVK-ch Open 2018"]
[Site "Banska Stiavnica"]
[Date "2018.07.15"]
[Round "9"]
[White "Budinsky, Martin"]
[Black "Bango, Lukas"]
[Result "0-1"]
[ECO "B50"]
[WhiteElo "1985"]
[BlackElo "2148"]
[Annotator "NA"]
[PlyCount "132"]
[EventDate "2018.07.07"]
[EventType "swiss"]
[EventCountry "SVK"]
[SourceTitle "playchess.com"]
[Source "ChessBase"]
[SourceQuality "1"]
[TimeControl "40/5400+30:1800+30"]

1. e4 {[%emt 0:00:00]} c5 {[%emt 0:17:13]} 2. Nf3 {[%emt 0:00:00]} d6 {[%emt 0:00:19]} 3. Bc4 {[%emt 0:00:07]} Nf6 {[%emt 0:00:20]} 4. d3 {[%emt 0:00:21]} e6 {[%emt 0:00:21]} 5. c3 {[%emt 0:00:41]} Be7 {[%emt 0:00:08]} 6. Nbd2 {[%emt 0:01:08]} O-O {[%emt 0:00:34]} 7. Bb3 {[%emt 0:00:06]} Nc6 {[%emt 0:01:54]} 8. O-O {[%emt 0:00:09]} b5 {[%emt 0:00:54]} 9. Re1 {[%emt 0:00:48]} e5 {[%emt 0:02:27]} 10. h3 {[%emt 0:02:58]} Be6 {[%emt 0:00:19]} 11. Bxe6 {[%emt 0:02:08]} fxe6 {[%emt 0:00:02]} 12. Qb3 {[%emt 0:00:11]} Qd7 {[%emt 0:02:32]} 13. Qxb5 {[%emt 0:00:41]} Rab8 {[%emt 0:00:07]} 14. Qa4 {[%emt 0:00:08]} Nh5 {[%emt 0:00:21]} 15. Nc4 {[%emt 0:03:58]} Qe8 {[%emt 0:03:29]} 16. Qd1 {[%emt 0:01:59]} Qg6 {[%emt 0:00:05]} 17. d4 {[%emt 0:09:13]} cxd4 {[%emt 0:07:42]} 18. cxd4 {[%emt 0:00:17]} Rb4 {[%emt 0:00:35]} 19. b3 {[%emt 0:02:08]} exd4 {[%emt 0:26:21]} 20. Nxd4 {[%emt 0:02:29]} Nxd4 {[%emt 0:00:55]} 21. Qxd4 {[%emt 0:00:58]} Bf6 {[%emt 0:01:50]} 22. Qxd6 {[%emt 0:02:00]} Bc3 {[%emt 0:00:17]} 23. Bd2 {[%emt 0:11:04]} Bxd2 {[%emt 0:00:09]} 24. Qxd2 {[%emt 0:00:18]} Nf4 {[%emt 0:00:02]} 25. f3 {[%emt 0:00:59]} Nxh3+ {[%emt 0:01:03]} 26. Kh2 {[%emt 0:04:36]} Nf4 {[%emt 0:02:34]} 27. Rad1 {[%emt 0:05:27]} Rb5 {[%emt 0:00:52]} 28. e5 {[%emt 0:01:51]} Rd5 {[%emt 0:00:03]} 29. Qf2 {[%emt 0:04:20]} Nd3 {[%emt 0:00:25]} 30. Qxa7 {[%emt 0:00:36]} Nxe1 {[%emt 0:06:23]} 31. Rxe1 {[%emt 0:00:28]} h5 {[%emt 0:00:06]} 32. Re4 {[%emt 0:06:22]} Rd1 {[%emt 0:02:27]} 33. Qe3 {[%emt 0:07:08]} Ra1 {[%emt 0:01:14]} 34. Qd2 {[%emt 0:02:46]} Rxf3 {[%emt 0:07:06]} 35. gxf3 {[%emt 0:01:59]} Qg1+ {[%emt 0:00:05]} 36. Kh3 {[%emt 0:00:11]} Qh1+ {[%emt 0:00:04]} 37. Kg3 {[%emt 0:00:49]} Rg1+ {[%emt 0:00:04]} 38. Kf4 {[%emt 0:00:34]} g5+ {[%emt 0:00:04]} 39. Ke3 {[%emt 0:00:09]} Re1+ {[%emt 0:00:06]} 40. Kd3 {[%emt 0:01:49]} Rd1 {[%emt 0:00:23]} 41. Qxd1 {[%emt 0:30:14]} Qxd1+ {[%emt 0:30:06]} 42. Nd2 {[%emt 0:00:05]} g4 {[%emt 0:03:34]} 43. fxg4 {[%emt 0:00:09]} hxg4 {[%emt 0:00:04]} 44. Re3 {[%emt 0:00:49]} Qg1 {[%emt 0:00:27]} 45. Ne4 {[%emt 0:00:41]} Qb1+ {[%emt 0:00:23]} 46. Ke2 {[%emt 0:01:57]} Qxa2+ {[%emt 0:00:19]} 47. Kf1 {[%emt 0:00:17]} Qa1+ {[%emt 0:00:10]} 48. Kf2 {[%emt 0:01:45]} Qxe5 {[%emt 0:00:08]} 49. Ng3 {[%emt 0:00:31]} Qf4+ {[%emt 0:03:06]} 50. Ke2 {[%emt 0:00:25]} Kf7 {[%emt 0:00:06]} 51. Ne4 {[%emt 0:01:22]} Kg6 {[%emt 0:00:35]} 52. b4 {[%emt 0:03:09]} Qh2+ {[%emt 0:00:30]} 53. Kd3 {[%emt 0:00:11]} Qb2 {[%emt 0:00:39]} 54. Kc4 {[%emt 0:00:21]} Qc1+ {[%emt 0:01:59]} 55. Rc3 {[%emt 0:01:04]} Qf4 {[%emt 0:00:04]} 56. Kd4 {[%emt 0:00:16]} Kf5 {[%emt 0:00:16]} 57. Re3 {[%emt 0:01:03]} g3 {[%emt 0:00:06]} 58. Kd3 {[%emt 0:00:19]} g2 {[%emt 0:00:12]} 59. Ng3+ {[%emt 0:00:29]} Kg4 {[%emt 0:00:54]} 60. Ne2 {[%emt 0:00:26]} Qf1 {[%emt 0:00:20]} 61. Rg3+ {[%emt 0:00:47]} Kh4 {[%emt 0:00:05]} 62. Rg8 {[%emt 0:01:04]} Qf3+ {[%emt 0:01:41]} 63. Kd2 {[%emt 0:00:23]} e5 {[%emt 0:00:11]} 64. Rh8+ {[%emt 0:01:05]} Kg5 {[%emt 0:00:08]} 65. Rg8+ {[%emt 0:00:20]} Kh6 {[%emt 0:00:05]} 66. Rg3 {[%emt 0:00:17]} Qxg3 {[%emt 0:00:06]} 0-1

[Event "SVK-ch Open 2018"]
[Site "Banska Stiavnica"]
[Date "2018.07.15"]
[Round "9"]
[White "Pesztericz, Laszlo"]
[Black "Sarkozi, Szabolcs"]
[Result "0-1"]
[ECO "E77"]
[WhiteElo "1980"]
[BlackElo "1808"]
[Annotator "NA"]
[PlyCount "92"]
[EventDate "2018.07.07"]
[EventType "swiss"]
[EventCountry "SVK"]
[SourceTitle "playchess.com"]
[Source "ChessBase"]
[SourceQuality "1"]
[TimeControl "40/5400+30:1800+30"]

1. e4 {[%emt 0:00:00]} g6 {[%emt 0:07:42]} 2. d4 {[%emt 0:00:00]} d6 {[%emt 0:01:03]} 3. c4 {[%emt 0:00:05]} Nf6 4. Nc3 {[%emt 0:00:09]} Bg7 {[%emt 0:00:15]} 5. f4 {[%emt 0:00:00]} O-O {[%emt 0:00:17]} 6. Nf3 c5 {[%emt 0:02:39]} 7. d5 {[%emt 0:00:23]} b5 {[%emt 0:05:40]} 8. e5 {[%emt 0:05:30]} Ng4 {[%emt 0:08:37]} 9. h3 {[%emt 0:05:01]} Nh6 {[%emt 0:13:04]} 10. Bd3 {[%emt 0:02:14]} bxc4 {[%emt 0:04:17]} 11. Bxc4 {[%emt 0:00:16]} Ba6 {[%emt 0:02:11]} 12. Bxa6 {[%emt 0:01:15]} Nxa6 {[%emt 0:00:01]} 13. O-O {[%emt 0:00:18]} Rb8 {[%emt 0:11:07]} 14. g4 {[%emt 0:07:30]} Qc7 {[%emt 0:08:16]} 15. Qe2 {[%emt 0:05:02]} c4 {[%emt 0:05:49]} 16. Be3 {[%emt 0:01:30]} Nb4 {[%emt 0:01:53]} 17. a4 {[%emt 0:30:21]} Nd3 {[%emt 0:04:15]} 18. Nb5 {[%emt 0:00:42]} Qb7 {[%emt 0:01:20]} 19. Nxa7 {[%emt 0:08:57]} Qxd5 {[%emt 0:03:03]} 20. Nb5 {[%emt 0:08:12]} dxe5 {[%emt 0:04:11]} 21. fxe5 {[%emt 0:00:12]} Nxe5 {[%emt 0:02:06]} 22. Nxe5 {[%emt 0:00:17]} Qxe5 {[%emt 0:00:56]} 23. Rfe1 {[%emt 0:00:41]} Qg3+ {[%emt 0:03:49]} 24. Qg2 {[%emt 0:00:16]} Qxg2+ {[%emt 0:00:15]} 25. Kxg2 {[%emt 0:00:08]} f5 {[%emt 0:03:26]} 26. Bxh6 {[%emt 0:01:04]} Bxh6 {[%emt 0:00:01]} 27. Rxe7 {[%emt 0:00:19]} fxg4 {[%emt 0:02:01]} 28. hxg4 {[%emt 0:00:14]} Rf4 {[%emt 0:01:31]} 29. Kg3 {[%emt 0:03:25]} Rbf8 {[%emt 0:01:02]} 30. Ra3 {[%emt 0:00:41]} Rf1 {[%emt 0:02:40]} 31. Re2 {[%emt 0:00:32]} Rg1+ {[%emt 0:00:52]} 32. Kh3 {[%emt 0:05:37]} Bf4 {[%emt 0:00:48]} 33. Re4 {[%emt 0:02:48]} g5 {[%emt 0:00:35]} 34. Nd4 {[%emt 0:00:51]} Rf6 {[%emt 0:00:42]} 35. Nf5 {[%emt 0:00:10]} h5 {[%emt 0:00:34]} 36. Ne7+ {[%emt 0:04:20]} Kf7 {[%emt 0:00:23]} 37. gxh5 {[%emt 0:00:24]} g4+ {[%emt 0:00:34]} 38. Kh4 {[%emt 0:00:15]} Bd6 {[%emt 0:00:31]} 39. Nd5 {[%emt 0:00:50]} Bxa3 40. Nxf6 {[%emt 0:00:17]} Be7 {[%emt 0:00:43]} 41. Rxe7+ {[%emt 0:31:38]} Kxe7 {[%emt 0:30:00]} 42. Nxg4 {[%emt 0:00:28]} Rb1 {[%emt 0:00:00]} 43. h6 {[%emt 0:00:00]} Kf8 {[%emt 0:00:00]} 44. Ne3 {[%emt 0:00:00]} Rxb2 {[%emt 0:00:00]} 45. Kg5 {[%emt 0:01:46]} c3 {[%emt 0:00:00]} 46. Kg6 {[%emt 0:05:47]} Kg8 {[%emt 0:00:00]} 0-1

[Event "SVK-ch Open 2018"]
[Site "Banska Stiavnica"]
[Date "2018.07.15"]
[Round "9"]
[White "Istok, Vojtech"]
[Black "Jamrich, Gyorgy"]
[Result "0-1"]
[ECO "A27"]
[WhiteElo "1971"]
[BlackElo "2200"]
[Annotator "NA"]
[PlyCount "90"]
[EventDate "2018.07.07"]
[EventType "swiss"]
[EventCountry "SVK"]
[SourceTitle "playchess.com"]
[Source "ChessBase"]
[SourceQuality "1"]
[TimeControl "40/5400+30:1800+30"]

1. c4 {[%emt 0:00:00]} e5 {[%emt 0:07:33]} 2. Nc3 {[%emt 0:00:00]} Nc6 {[%emt 0:01:11]} 3. Nf3 {[%emt 0:00:21]} g6 {[%emt 0:00:11]} 4. g3 {[%emt 0:01:15]} Bg7 {[%emt 0:00:07]} 5. Bg2 {[%emt 0:00:17]} Nge7 {[%emt 0:03:31]} 6. O-O {[%emt 0:00:11]} O-O {[%emt 0:00:03]} 7. b3 {[%emt 0:03:04]} Nd4 {[%emt 0:02:01]} 8. e3 {[%emt 0:00:43]} Nxf3+ {[%emt 0:00:19]} 9. Bxf3 {[%emt 0:02:24]} f5 {[%emt 0:00:16]} 10. d4 {[%emt 0:01:46]} e4 {[%emt 0:02:05]} 11. Bg2 {[%emt 0:00:07]} c6 {[%emt 0:00:05]} 12. Ba3 {[%emt 0:01:54]} d6 {[%emt 0:00:29]} 13. b4 {[%emt 0:01:38]} Be6 {[%emt 0:03:31]} 14. Qe2 {[%emt 0:01:37]} a6 {[%emt 0:05:47]} 15. c5 {[%emt 0:03:50]} d5 {[%emt 0:13:45]} 16. Bc1 {[%emt 0:01:57]} g5 {[%emt 0:00:13]} 17. Rd1 {[%emt 0:06:45]} Ng6 {[%emt 0:05:02]} 18. f3 {[%emt 0:01:15]} exf3 {[%emt 0:00:27]} 19. Bxf3 {[%emt 0:00:12]} Qd7 {[%emt 0:00:25]} 20. Na4 {[%emt 0:02:40]} Rae8 {[%emt 0:00:17]} 21. Nb6 {[%emt 0:02:00]} Qc7 {[%emt 0:00:29]} 22. Bh5 {[%emt 0:02:01]} Rf6 {[%emt 0:00:26]} 23. Rf1 {[%emt 0:09:45]} Bf7 {[%emt 0:08:57]} 24. Qf2 {[%emt 0:05:21]} Nf8 {[%emt 0:01:56]} 25. Bxf7+ {[%emt 0:00:36]} Qxf7 {[%emt 0:00:35]} 26. Bd2 {[%emt 0:03:19]} Ng6 {[%emt 0:08:51]} 27. a4 {[%emt 0:02:44]} f4 {[%emt 0:00:58]} 28. exf4 {[%emt 0:00:17]} gxf4 {[%emt 0:00:07]} 29. gxf4 {[%emt 0:01:21]} Nxf4 {[%emt 0:05:35]} 30. Bxf4 {[%emt 0:01:03]} Re4 {[%emt 0:00:07]} 31. Be5 {[%emt 0:03:06]} Rxf2 {[%emt 0:00:22]} 32. Rxf2 {[%emt 0:00:04]} Qg6+ {[%emt 0:00:14]} 33. Rg2 {[%emt 0:00:14]} Rg4 {[%emt 0:00:12]} 34. Rxg4 {[%emt 0:00:45]} Qxg4+ {[%emt 0:00:06]} 35. Kf2 {[%emt 0:00:09]} Qf5+ {[%emt 0:00:20]} 36. Kg2 {[%emt 0:00:47]} Qe4+ {[%emt 0:00:25]} 37. Kh3 {[%emt 0:01:03]} Qf3+ {[%emt 0:04:44]} 38. Bg3 {[%emt 0:00:57]} h5 {[%emt 0:01:07]} 39. Re1 {[%emt 0:00:34]} h4 {[%emt 0:00:58]} 40. Kxh4 {[%emt 0:00:28]} Bf6+ {[%emt 0:00:08]} 41. Kh3 {[%emt 0:30:07]} Bxd4 {[%emt 0:30:52]} 42. Re8+ {[%emt 0:00:18]} Kf7 {[%emt 0:00:09]} 43. Rb8 {[%emt 0:00:20]} Bf6 {[%emt 0:00:45]} 44. Rxb7+ {[%emt 0:00:12]} Kg6 {[%emt 0:00:07]} 45. Nd7 {[%emt 0:00:27]} Qf1+ 0-1

[Event "SVK-ch Open 2018"]
[Site "Banska Stiavnica"]
[Date "2018.07.15"]
[Round "9"]
[White "Panko, Eduard"]
[Black "Mandak, Miroslav"]
[Result "1/2-1/2"]
[ECO "B20"]
[WhiteElo "1958"]
[BlackElo "1989"]
[Annotator "NA"]
[PlyCount "48"]
[EventDate "2018.07.07"]
[EventType "swiss"]
[EventCountry "SVK"]
[SourceTitle "playchess.com"]
[Source "ChessBase"]
[SourceQuality "1"]
[TimeControl "40/5400+30:1800+30"]

1. e4 {[%emt 0:02:59]} c5 {[%emt 0:00:01]} 2. a3 {[%emt 0:01:50]} g6 {[%emt 0:00:25]} 3. Nc3 {[%emt 0:00:14]} Bg7 {[%emt 0:00:30]} 4. b4 {[%emt 0:00:23]} d6 {[%emt 0:04:30]} 5. Rb1 {[%emt 0:01:51]} Nc6 {[%emt 0:04:33]} 6. Bc4 {[%emt 0:01:56]} e6 {[%emt 0:01:34]} 7. bxc5 {[%emt 0:00:53]} dxc5 {[%emt 0:00:35]} 8. Nge2 {[%emt 0:00:17]} Nge7 {[%emt 0:01:00]} 9. O-O {[%emt 0:00:25]} O-O {[%emt 0:01:19]} 10. d3 {[%emt 0:00:53]} b6 {[%emt 0:04:29]} 11. Be3 {[%emt 0:00:39]} Nd4 {[%emt 0:05:09]} 12. f3 {[%emt 0:07:46]} Nec6 {[%emt 0:01:51]} 13. Bf2 {[%emt 0:01:16]} Bb7 {[%emt 0:04:26]} 14. Nxd4 {[%emt 0:00:24]} cxd4 {[%emt 0:00:56]} 15. Ne2 {[%emt 0:00:34]} Na5 {[%emt 0:00:57]} 16. Rb4 {[%emt 0:04:32]} Rc8 {[%emt 0:10:11]} 17. Ba2 {[%emt 0:03:08]} Nc6 {[%emt 0:00:28]} 18. Rb1 {[%emt 0:00:43]} Qe7 {[%emt 0:01:39]} 19. Qc1 {[%emt 0:01:01]} Rfd8 {[%emt 0:01:01]} 20. Qb2 {[%emt 0:02:08]} Rd7 {[%emt 0:03:30]} 21. Bb3 {[%emt 0:02:51]} b5 {[%emt 0:06:31]} 22. f4 {[%emt 0:08:29]} a6 {[%emt 0:03:27]} 23. Be1 {[%emt 0:06:59]} Kh8 {[%emt 0:10:41]} 24. Bd2 {[%emt 0:01:56]} Qd8 {[%emt 0:02:25]} 1/2-1/2

[Event "SVK-ch Open 2018"]
[Site "Banska Stiavnica"]
[Date "2018.07.15"]
[Round "9"]
[White "Gzib, David"]
[Black "Horvath, Julia"]
[Result "0-1"]
[ECO "C41"]
[WhiteElo "1939"]
[BlackElo "2107"]
[Annotator "NA"]
[PlyCount "54"]
[EventDate "2018.07.07"]
[EventType "swiss"]
[EventCountry "SVK"]
[SourceTitle "playchess.com"]
[Source "ChessBase"]
[SourceQuality "1"]
[TimeControl "40/5400+30:1800+30"]

1. e4 {[%emt 0:14:25]} d6 {[%emt 0:00:00]} 2. Nf3 {[%emt 0:00:13]} e5 {[%emt 0:00:11]} 3. d4 {[%emt 0:01:06]} Nd7 {[%emt 0:00:42]} 4. dxe5 {[%emt 0:00:36]} dxe5 {[%emt 0:00:14]} 5. Bc4 {[%emt 0:03:53]} c6 {[%emt 0:00:39]} 6. O-O {[%emt 0:04:15]} Be7 {[%emt 0:00:28]} 7. Qe2 {[%emt 0:02:36]} h6 {[%emt 0:05:47]} 8. Rd1 {[%emt 0:02:24]} Qc7 {[%emt 0:00:14]} 9. Nbd2 {[%emt 0:04:36]} b5 {[%emt 0:03:17]} 10. Bd3 {[%emt 0:04:23]} Nc5 {[%emt 0:00:33]} 11. Nf1 {[%emt 0:03:16]} Nf6 {[%emt 0:13:56]} 12. Ng3 {[%emt 0:00:39]} O-O {[%emt 0:01:57]} 13. h3 {[%emt 0:04:44]} Re8 {[%emt 0:01:32]} 14. Be3 {[%emt 0:01:41]} a5 {[%emt 0:04:39]} 15. c3 {[%emt 0:02:07]} Nxd3 {[%emt 0:00:50]} 16. Qxd3 {[%emt 0:00:02]} Be6 {[%emt 0:00:20]} 17. Qc2 {[%emt 0:02:43]} Red8 {[%emt 0:12:41]} 18. a4 {[%emt 0:05:29]} Rdb8 {[%emt 0:06:09]} 19. axb5 {[%emt 0:03:54]} cxb5 {[%emt 0:04:07]} 20. b3 {[%emt 0:03:39]} a4 {[%emt 0:00:34]} 21. bxa4 {[%emt 0:02:10]} bxa4 {[%emt 0:00:50]} 22. c4 {[%emt 0:10:28]} a3 {[%emt 0:01:28]} 23. Rd3 {[%emt 0:06:18]} Qxc4 {[%emt 0:07:38]} 24. Rc3 {[%emt 0:03:03]} Qb5 {[%emt 0:01:26]} 25. Bc1 {[%emt 0:02:53]} a2 {[%emt 0:01:30]} 26. Nd2 {[%emt 0:00:13]} Bb4 {[%emt 0:03:56]} 27. Rd3 {[%emt 0:02:16]} Rc8 {[%emt 0:01:10]} 0-1